[Event "Titled Tuesday Blitz August 1 Late 2023"]
[White "Pein, Malcolm"]
[Black "Uzcategui Rodriguez, Alejandro"]
[WhiteFideId "400289"]
[BlackFideId "3903400"]
[WhiteElo "2261"]
[BlackElo "2393"]
[Result "1-0"]
[Round "5"]
[TimeControl "180+1"]
[Date "2023.08.01"]
[WhiteClock "0:00:06"]
[BlackClock "0:00:05"]
[Board "139"]

1. e4 {[%clk 0:02:55]}  e6 {[%clk 0:02:59]} 2. d4 {[%clk 0:02:54]}  d5 {[%clk 0:03:00]} 3. Nc3 {[%clk 0:02:55]}  Nf6 {[%clk 0:02:56]} 4. Bg5 {[%clk 0:02:52]}  Be7 {[%clk 0:02:52]} 5. e5 {[%clk 0:02:50]}  Nfd7 {[%clk 0:02:52]} 6. Bxe7 {[%clk 0:02:51]}  Qxe7 {[%clk 0:02:42]} 7. f4 {[%clk 0:02:51]}  a6 {[%clk 0:02:38]} 8. Nf3 {[%clk 0:02:52]}  c5 {[%clk 0:02:39]} 9. Qd2 {[%clk 0:02:50]}  Nc6 {[%clk 0:02:38]} 10. dxc5 {[%clk 0:02:49]}  Nxc5 {[%clk 0:02:37]} 11. Bd3 {[%clk 0:02:46]}  b5 {[%clk 0:02:38]} 12. a3 {[%clk 0:02:45]}  Nxd3+ {[%clk 0:02:21]} 13. cxd3 {[%clk 0:02:43]}  b4 {[%clk 0:02:18]} 14. axb4 {[%clk 0:02:31]}  Qxb4 {[%clk 0:02:17]} 15. O-O {[%clk 0:02:20]}  Bd7 {[%clk 0:02:08]} 16. Ne2 {[%clk 0:02:08]}  Qxd2 {[%clk 0:02:05]} 17. Nxd2 {[%clk 0:02:08]}  Nb4 {[%clk 0:01:59]} 18. d4 {[%clk 0:01:59]}  Bb5 {[%clk 0:01:58]} 19. Kf2 {[%clk 0:01:56]}  Nd3+ {[%clk 0:01:55]} 20. Ke3 {[%clk 0:01:56]}  Nxb2 {[%clk 0:01:55]} 21. Rfb1 {[%clk 0:01:51]}  Nc4+ {[%clk 0:01:53]} 22. Nxc4 {[%clk 0:01:46]}  Bxc4 {[%clk 0:01:54]} 23. Nc3 {[%clk 0:01:33]}  O-O {[%clk 0:01:51]} 24. Na4 {[%clk 0:01:33]}  Rfb8 {[%clk 0:01:43]} 25. Nb6 {[%clk 0:01:31]}  Rxb6 {[%clk 0:00:42]} 26. Rxb6 {[%clk 0:01:30]}  g6 {[%clk 0:00:43]} 27. Ra5 {[%clk 0:01:22]}  Rc8 {[%clk 0:00:40]} 28. Rc5 {[%clk 0:01:21]}  Rf8 {[%clk 0:00:34]} 29. Rb7 {[%clk 0:01:18]}  Kg7 {[%clk 0:00:33]} 30. Ra7 {[%clk 0:01:15]}  Rb8 {[%clk 0:00:23]} 31. Rcc7 {[%clk 0:01:14]}  Kh6 {[%clk 0:00:17]} 32. Rxf7 {[%clk 0:01:12]}  Rb3+ {[%clk 0:00:15]} 33. Kf2 {[%clk 0:01:09]}  Kh5 {[%clk 0:00:16]} 34. h3 {[%clk 0:01:02]}  h6 {[%clk 0:00:09]} 35. Rh7 {[%clk 0:00:59]}  Rb2+ {[%clk 0:00:09]} 36. Kg1 {[%clk 0:00:48]}  Bd3 {[%clk 0:00:07]} 37. Rhe7 {[%clk 0:00:29]}  Be4 {[%clk 0:00:05]} 38. Rxe6 {[%clk 0:00:29]}  Rxg2+ {[%clk 0:00:06]} 39. Kf1 {[%clk 0:00:29]}  Rh2 {[%clk 0:00:06]} 40. Raxa6 {[%clk 0:00:23]}  Bd3+ {[%clk 0:00:06]} 41. Kg1 {[%clk 0:00:22]}  Rxh3 {[%clk 0:00:06]} 42. Ra3 {[%clk 0:00:20]}  Rg3+ {[%clk 0:00:06]} 43. Kf2 {[%clk 0:00:20]}  Rh3 {[%clk 0:00:06]} 44. Rb6 {[%clk 0:00:16]}  Rh2+ {[%clk 0:00:06]} 45. Kg3 {[%clk 0:00:16]}  Rd2 {[%clk 0:00:06]} 46. e6 {[%clk 0:00:16]}  Be4 {[%clk 0:00:06]} 47. e7 {[%clk 0:00:12]}  Rg2+ {[%clk 0:00:05]} 48. Kh3 {[%clk 0:00:12]}  g5 {[%clk 0:00:05]} 49. fxg5 {[%clk 0:00:11]}  hxg5 {[%clk 0:00:06]} 50. Rh6+ {[%clk 0:00:08]}  Kxh6 {[%clk 0:00:06]} 51. e8=Q {[%clk 0:00:08]}  Rf2 {[%clk 0:00:05]} 52. Qh8+ {[%clk 0:00:07]}  Kg6 {[%clk 0:00:05]} 53. Ra6+ {[%clk 0:00:07]}  Kf5 {[%clk 0:00:05]} 54. Qf6# {[%clk 0:00:06]} 1-0


[Site "https://www.chess.com"]

[Event "Titled Tuesday Blitz August 1 Late 2023"]
[White "Cardozo Munar, Carlos Eduardo"]
[Black "Eggleston, Thomas A"]
[WhiteFideId "4409477"]
[BlackFideId "412139"]
[WhiteElo "2260"]
[BlackElo "2378"]
[Result "0-1"]
[Round "5"]
[TimeControl "180+1"]
[Date "2023.08.01"]
[WhiteClock "0:00:01"]
[BlackClock "0:00:17"]
[Board "140"]

1. d4 {[%clk 0:03:00]}  e6 {[%clk 0:02:59]} 2. Nf3 {[%clk 0:02:57]}  f5 {[%clk 0:02:59]} 3. h3 {[%clk 0:02:56]}  Nf6 {[%clk 0:03:00]} 4. g4 {[%clk 0:02:56]}  c5 {[%clk 0:02:55]} 5. Nc3 {[%clk 0:02:51]}  cxd4 {[%clk 0:02:48]} 6. Qxd4 {[%clk 0:02:51]}  Nc6 {[%clk 0:02:47]} 7. Qd3 {[%clk 0:02:49]}  Nb4 {[%clk 0:02:42]} 8. Qd1 {[%clk 0:02:48]}  g6 {[%clk 0:02:11]} 9. a3 {[%clk 0:02:47]}  Nbd5 {[%clk 0:02:10]} 10. Nxd5 {[%clk 0:02:40]}  Nxd5 {[%clk 0:02:10]} 11. gxf5 {[%clk 0:02:40]}  gxf5 {[%clk 0:02:09]} 12. Bg5 {[%clk 0:02:39]}  Be7 {[%clk 0:02:09]} 13. Qd2 {[%clk 0:02:37]}  Nf6 {[%clk 0:01:58]} 14. Qc3 {[%clk 0:02:27]}  Kf7 {[%clk 0:01:53]} 15. Ne5+ {[%clk 0:02:14]}  Ke8 {[%clk 0:01:52]} 16. Bg2 {[%clk 0:01:57]}  Rg8 {[%clk 0:01:51]} 17. h4 {[%clk 0:01:20]}  h6 {[%clk 0:01:40]} 18. Bxf6 {[%clk 0:00:57]}  Bxf6 {[%clk 0:01:41]} 19. Bf3 {[%clk 0:00:58]}  d6 {[%clk 0:01:24]} 20. Bh5+ {[%clk 0:00:57]}  Ke7 {[%clk 0:01:22]} 21. Qe3 {[%clk 0:00:28]}  Bxe5 {[%clk 0:01:14]} 22. Qxh6 {[%clk 0:00:28]}  Qf8 {[%clk 0:01:10]} 23. Qd2 {[%clk 0:00:22]}  f4 {[%clk 0:00:51]} 24. O-O-O {[%clk 0:00:22]}  Qf6 {[%clk 0:00:49]} 25. Kb1 {[%clk 0:00:19]}  Bd7 {[%clk 0:00:47]} 26. Bf3 {[%clk 0:00:19]}  d5 {[%clk 0:00:44]} 27. c4 {[%clk 0:00:18]}  Bc6 {[%clk 0:00:38]} 28. cxd5 {[%clk 0:00:18]}  exd5 {[%clk 0:00:34]} 29. Bxd5 {[%clk 0:00:19]}  Bxd5 {[%clk 0:00:32]} 30. Qxd5 {[%clk 0:00:19]}  Qf5+ {[%clk 0:00:32]} 31. Ka2 {[%clk 0:00:19]}  Qe6 {[%clk 0:00:31]} 32. h5 {[%clk 0:00:14]}  Rad8 {[%clk 0:00:27]} 33. Qxe6+ {[%clk 0:00:14]}  Kxe6 {[%clk 0:00:26]} 34. Rxd8 {[%clk 0:00:13]}  Rxd8 {[%clk 0:00:25]} 35. e3 {[%clk 0:00:14]}  fxe3 {[%clk 0:00:19]} 36. fxe3 {[%clk 0:00:14]}  Rd2 {[%clk 0:00:20]} 37. Kb3 {[%clk 0:00:14]}  Rxb2+ {[%clk 0:00:20]} 38. Ka4 {[%clk 0:00:14]}  a6 {[%clk 0:00:17]} 39. h6 {[%clk 0:00:14]}  Bc3 {[%clk 0:00:17]} 40. Rh5 {[%clk 0:00:01]}  b5+ {[%clk 0:00:16]} 41. Rxb5 {[%clk 0:00:01]}  axb5# {[%clk 0:00:17]} 0-1


[Site "https://www.chess.com"]

[Event "Titled Tuesday Blitz August 1 Late 2023"]
[White "Vila Dupla, Aurelio"]
[Black "Elissalt Cardenas, Hector"]
[WhiteFideId "2203383"]
[BlackFideId "3500632"]
[WhiteElo "2153"]
[BlackElo "2359"]
[Result "1/2-1/2"]
[Round "5"]
[TimeControl "180+1"]
[Date "2023.08.01"]
[WhiteClock "0:00:03"]
[BlackClock "0:00:01"]
[Board "147"]

1. Nf3 {[%clk 0:03:00]}  d5 {[%clk 0:02:56]} 2. d4 {[%clk 0:03:00]}  Nf6 {[%clk 0:02:54]} 3. c4 {[%clk 0:03:00]}  e6 {[%clk 0:02:54]} 4. cxd5 {[%clk 0:03:00]}  exd5 {[%clk 0:02:53]} 5. Nc3 {[%clk 0:03:00]}  c6 {[%clk 0:02:53]} 6. Qc2 {[%clk 0:03:00]}  Be7 {[%clk 0:02:52]} 7. Bg5 {[%clk 0:03:00]}  O-O {[%clk 0:02:52]} 8. e3 {[%clk 0:03:00]}  Nbd7 {[%clk 0:02:52]} 9. Bd3 {[%clk 0:03:00]}  h6 {[%clk 0:02:52]} 10. Bh4 {[%clk 0:02:53]}  Ne8 {[%clk 0:02:52]} 11. Bxe7 {[%clk 0:02:51]}  Qxe7 {[%clk 0:02:52]} 12. O-O {[%clk 0:02:49]}  Ndf6 {[%clk 0:02:50]} 13. Ne5 {[%clk 0:02:45]}  Nd6 {[%clk 0:02:50]} 14. Rfe1 {[%clk 0:02:41]}  Be6 {[%clk 0:02:49]} 15. b3 {[%clk 0:02:37]}  Rac8 {[%clk 0:02:42]} 16. Rad1 {[%clk 0:02:34]}  Ng4 {[%clk 0:02:30]} 17. Nxg4 {[%clk 0:02:24]}  Bxg4 {[%clk 0:02:29]} 18. f3 {[%clk 0:02:24]}  Be6 {[%clk 0:02:20]} 19. e4 {[%clk 0:02:24]}  Qh4 {[%clk 0:02:17]} 20. e5 {[%clk 0:02:13]}  Ne8 {[%clk 0:01:46]} 21. Kh1 {[%clk 0:02:09]}  g6 {[%clk 0:01:39]} 22. Ne2 {[%clk 0:01:58]}  Ng7 {[%clk 0:01:38]} 23. Ng3 {[%clk 0:01:54]}  h5 {[%clk 0:01:32]} 24. Qd2 {[%clk 0:01:45]}  Kh7 {[%clk 0:01:30]} 25. f4 {[%clk 0:01:44]}  Qg4 {[%clk 0:01:26]} 26. Be2 {[%clk 0:01:29]}  Qh4 {[%clk 0:01:25]} 27. Bd3 {[%clk 0:01:26]}  Bg4 {[%clk 0:01:10]} 28. Rc1 {[%clk 0:01:18]}  Rce8 {[%clk 0:01:09]} 29. Rf1 {[%clk 0:01:16]}  Nf5 {[%clk 0:01:00]} 30. Bxf5 {[%clk 0:01:11]}  Bxf5 {[%clk 0:00:59]} 31. Nxf5 {[%clk 0:01:10]}  gxf5 {[%clk 0:00:59]} 32. Rf3 {[%clk 0:01:09]}  Re6 {[%clk 0:00:51]} 33. Rcc3 {[%clk 0:01:01]}  Rh6 {[%clk 0:00:25]} 34. Rh3 {[%clk 0:00:53]}  Qe7 {[%clk 0:00:24]} 35. Rcg3 {[%clk 0:00:46]}  Rg8 {[%clk 0:00:20]} 36. Rg5 {[%clk 0:00:28]}  h4 {[%clk 0:00:14]} 37. Rxf5 {[%clk 0:00:18]}  Rg4 {[%clk 0:00:12]} 38. Qd3 {[%clk 0:00:17]}  Kg8 {[%clk 0:00:10]} 39. Qf3 {[%clk 0:00:13]}  Rhg6 {[%clk 0:00:10]} 40. g3 {[%clk 0:00:11]}  Qe6 {[%clk 0:00:08]} 41. Rg5 {[%clk 0:00:07]}  hxg3 {[%clk 0:00:04]} 42. Rxg3 {[%clk 0:00:07]}  R6xg5 {[%clk 0:00:01]} 43. fxg5 {[%clk 0:00:05]}  Rxg3 {[%clk 0:00:01]} 44. Qxg3 {[%clk 0:00:04]}  Qg6 {[%clk 0:00:01]} 45. Kg2 {[%clk 0:00:03]}  Qe4+ {[%clk 0:00:01]} 46. Kh3 {[%clk 0:00:03]}  Qf5+ {[%clk 0:00:01]} 47. Kg2 {[%clk 0:00:03]}  Qe4+ {[%clk 0:00:01]} 48. Kh3 {[%clk 0:00:03]}  Qf5+ {[%clk 0:00:01]} 49. Kg2 {[%clk 0:00:03]}  Qc2+ {[%clk 0:00:01]} 50. Kh3 {[%clk 0:00:03]}  Qf5+ {[%clk 0:00:01]} 1/2-1/2


[Site "https://www.chess.com"]

[Event "Titled Tuesday Blitz August 1 Late 2023"]
[White "Hacker, Jonas"]
[Black "Navyblue1"]
[WhiteFideId "1270968"]
[WhiteElo "2336"]
[BlackElo "1931"]
[Result "1/2-1/2"]
[Round "5"]
[TimeControl "180+1"]
[Date "2023.08.01"]
[WhiteClock "0:00:06"]
[BlackClock "0:00:15"]
[Board "152"]

1. c4 {[%clk 0:03:00]}  c5 {[%clk 0:02:58]} 2. Nf3 {[%clk 0:02:59]}  Nc6 {[%clk 0:02:57]} 3. Nc3 {[%clk 0:02:58]}  Nf6 {[%clk 0:02:58]} 4. e3 {[%clk 0:02:58]}  d5 {[%clk 0:02:53]} 5. cxd5 {[%clk 0:02:58]}  Nxd5 {[%clk 0:02:52]} 6. a3 {[%clk 0:01:57]}  e6 {[%clk 0:02:47]} 7. Bb5 {[%clk 0:01:55]}  Bd7 {[%clk 0:02:44]} 8. O-O {[%clk 0:01:52]}  Be7 {[%clk 0:02:39]} 9. Nxd5 {[%clk 0:01:39]}  exd5 {[%clk 0:02:38]} 10. d4 {[%clk 0:01:31]}  cxd4 {[%clk 0:02:14]} 11. Bxc6 {[%clk 0:01:16]}  bxc6 {[%clk 0:01:57]} 12. exd4 {[%clk 0:01:13]}  O-O {[%clk 0:01:57]} 13. h3 {[%clk 0:01:10]}  Be6 {[%clk 0:01:14]} 14. Qc2 {[%clk 0:01:09]}  Rc8 {[%clk 0:01:11]} 15. Be3 {[%clk 0:01:07]}  Qb6 {[%clk 0:00:58]} 16. Rfc1 {[%clk 0:01:05]}  a5 {[%clk 0:00:49]} 17. Bg5 {[%clk 0:00:52]}  Bd6 {[%clk 0:00:39]} 18. Bd2 {[%clk 0:00:51]}  c5 {[%clk 0:00:33]} 19. Ng5 {[%clk 0:00:38]}  g6 {[%clk 0:00:32]} 20. Nxe6 {[%clk 0:00:33]}  fxe6 {[%clk 0:00:33]} 21. Bh6 {[%clk 0:00:26]}  Rfe8 {[%clk 0:00:20]} 22. dxc5 {[%clk 0:00:18]}  Bxc5 {[%clk 0:00:20]} 23. Qe2 {[%clk 0:00:17]}  Bd4 {[%clk 0:00:18]} 24. Rxc8 {[%clk 0:00:15]}  Rxc8 {[%clk 0:00:18]} 25. Rb1 {[%clk 0:00:16]}  Bf6 {[%clk 0:00:17]} 26. b4 {[%clk 0:00:14]}  axb4 {[%clk 0:00:17]} 27. axb4 {[%clk 0:00:15]}  Rb8 {[%clk 0:00:17]} 28. b5 {[%clk 0:00:15]}  Kf7 {[%clk 0:00:17]} 29. Bf4 {[%clk 0:00:15]}  Rb7 {[%clk 0:00:16]} 30. Bg3 {[%clk 0:00:14]}  d4 {[%clk 0:00:16]} 31. Qc4 {[%clk 0:00:14]}  Rd7 {[%clk 0:00:15]} 32. Qc6 {[%clk 0:00:13]}  Rb7 {[%clk 0:00:14]} 33. Qe4 {[%clk 0:00:12]}  Rd7 {[%clk 0:00:13]} 34. h4 {[%clk 0:00:12]}  d3 {[%clk 0:00:13]} 35. h5 {[%clk 0:00:11]}  d2 {[%clk 0:00:12]} 36. Qe2 {[%clk 0:00:10]}  Rd5 {[%clk 0:00:10]} 37. Rd1 {[%clk 0:00:10]}  Qxb5 {[%clk 0:00:10]} 38. Qxb5 {[%clk 0:00:09]}  Rxb5 {[%clk 0:00:11]} 39. hxg6+ {[%clk 0:00:09]}  hxg6 {[%clk 0:00:11]} 40. Rxd2 {[%clk 0:00:09]}  e5 {[%clk 0:00:12]} 41. Kh2 {[%clk 0:00:09]}  Ke6 {[%clk 0:00:12]} 42. Re2 {[%clk 0:00:09]}  Kf5 {[%clk 0:00:12]} 43. f3 {[%clk 0:00:10]}  Ra5 {[%clk 0:00:12]} 44. Bf2 {[%clk 0:00:09]}  Rd5 {[%clk 0:00:13]} 45. Bg3 {[%clk 0:00:10]}  Rb5 {[%clk 0:00:12]} 46. Rd2 {[%clk 0:00:08]}  g5 {[%clk 0:00:12]} 47. Re2 {[%clk 0:00:08]}  Rd5 {[%clk 0:00:12]} 48. Bf2 {[%clk 0:00:09]}  g4 {[%clk 0:00:12]} 49. Kg3 {[%clk 0:00:07]}  gxf3 {[%clk 0:00:12]} 50. gxf3 {[%clk 0:00:08]}  Rd3 {[%clk 0:00:12]} 51. Re4 {[%clk 0:00:08]}  Bg5 {[%clk 0:00:11]} 52. Kg2 {[%clk 0:00:06]}  Bf4 {[%clk 0:00:11]} 53. Re2 {[%clk 0:00:05]}  Rd2 {[%clk 0:00:11]} 54. Rxd2 {[%clk 0:00:05]}  Bxd2 {[%clk 0:00:12]} 55. Bg3 {[%clk 0:00:05]}  Bf4 {[%clk 0:00:13]} 56. Bf2 {[%clk 0:00:06]}  Bg5 {[%clk 0:00:13]} 57. Kg3 {[%clk 0:00:05]}  Bf4+ {[%clk 0:00:14]} 58. Kg2 {[%clk 0:00:05]}  Bg5 {[%clk 0:00:14]} 59. Be1 {[%clk 0:00:06]}  Bf4 {[%clk 0:00:15]} 60. Bc3 {[%clk 0:00:06]}  Bg5 {[%clk 0:00:16]} 61. Kf2 {[%clk 0:00:06]}  Bf4 {[%clk 0:00:17]} 62. Ke2 {[%clk 0:00:07]}  Ke6 {[%clk 0:00:17]} 63. Bxe5 {[%clk 0:00:08]}  Kf5 {[%clk 0:00:18]} 64. Bc3 {[%clk 0:00:07]}  Be5 {[%clk 0:00:18]} 65. Bd2 {[%clk 0:00:06]}  Bd6 {[%clk 0:00:18]} 66. Be1 {[%clk 0:00:05]}  Bf8 {[%clk 0:00:19]} 67. Bg3 {[%clk 0:00:05]}  Bc5 {[%clk 0:00:18]} 68. Kd3 {[%clk 0:00:05]}  Bb6 {[%clk 0:00:17]} 69. Ke2 {[%clk 0:00:04]}  Bc5 {[%clk 0:00:17]} 70. Bf2 {[%clk 0:00:05]}  Bd6 {[%clk 0:00:17]} 71. Be3 {[%clk 0:00:05]}  Bb4 {[%clk 0:00:16]} 72. Bd2 {[%clk 0:00:05]}  Bxd2 {[%clk 0:00:15]} 73. Kxd2 {[%clk 0:00:05]}  Kf4 {[%clk 0:00:14]} 74. Kd3 {[%clk 0:00:06]}  Kxf3 {[%clk 0:00:15]} 1/2-1/2


[Site "https://www.chess.com"]

[Event "Titled Tuesday Blitz August 1 Late 2023"]
[White "Polaczek, Richard"]
[Black "Prydun, Andriy"]
[WhiteFideId "200026"]
[BlackFideId "14145898"]
[WhiteElo "2416"]
[BlackElo "2326"]
[Result "1-0"]
[Round "5"]
[TimeControl "180+1"]
[Date "2023.08.01"]
[WhiteClock "0:01:01"]
[BlackClock "0:00:47"]
[Board "155"]

1. d4 {[%clk 0:02:58]}  Nf6 {[%clk 0:02:58]} 2. Bg5 {[%clk 0:02:57]}  Ne4 {[%clk 0:02:58]} 3. Bf4 {[%clk 0:02:57]}  c6 {[%clk 0:02:57]} 4. e3 {[%clk 0:02:54]}  Ng5 {[%clk 0:02:56]} 5. Bxg5 {[%clk 0:02:48]}  Qa5+ {[%clk 0:02:55]} 6. Nc3 {[%clk 0:02:48]}  Qxg5 {[%clk 0:02:55]} 7. Nf3 {[%clk 0:02:47]}  Qa5 {[%clk 0:02:54]} 8. Bd3 {[%clk 0:02:41]}  d5 {[%clk 0:02:53]} 9. O-O {[%clk 0:02:40]}  Bg4 {[%clk 0:02:52]} 10. h3 {[%clk 0:02:39]}  Bh5 {[%clk 0:02:51]} 11. e4 {[%clk 0:02:36]}  e6 {[%clk 0:02:48]} 12. Re1 {[%clk 0:02:32]}  Be7 {[%clk 0:02:42]} 13. exd5 {[%clk 0:02:25]}  cxd5 {[%clk 0:02:42]} 14. Bb5+ {[%clk 0:02:20]}  Nc6 {[%clk 0:02:39]} 15. g4 {[%clk 0:02:19]}  Bg6 {[%clk 0:02:38]} 16. Ne5 {[%clk 0:02:18]}  Rc8 {[%clk 0:02:37]} 17. a3 {[%clk 0:01:46]}  Bf6 {[%clk 0:02:15]} 18. Bxc6+ {[%clk 0:01:42]}  bxc6 {[%clk 0:02:13]} 19. b4 {[%clk 0:01:41]}  Qc7 {[%clk 0:02:10]} 20. Na4 {[%clk 0:01:38]}  Bxe5 {[%clk 0:01:35]} 21. dxe5 {[%clk 0:01:35]}  h5 {[%clk 0:01:34]} 22. Nc5 {[%clk 0:01:27]}  hxg4 {[%clk 0:01:28]} 23. Qxg4 {[%clk 0:01:25]}  Qe7 {[%clk 0:01:21]} 24. Re3 {[%clk 0:01:18]}  Qh4 {[%clk 0:01:16]} 25. c3 {[%clk 0:01:07]}  Bh7 {[%clk 0:01:06]} 26. Qxh4 {[%clk 0:01:06]}  g5 {[%clk 0:00:47]} 27. Qh6 {[%clk 0:01:01]} 1-0


[Site "https://www.chess.com"]

[Event "Titled Tuesday Blitz August 1 Late 2023"]
[White "Srdanovic, Jovana"]
[Black "Joubert, Dantelle"]
[WhiteFideId "954810"]
[BlackFideId "14310813"]
[WhiteElo "2344"]
[BlackElo "2054"]
[Result "1-0"]
[Round "5"]
[TimeControl "180+1"]
[Date "2023.08.01"]
[WhiteClock "0:01:10"]
[BlackClock "0:01:48"]
[Board "157"]

1. d4 {[%clk 0:03:00]}  d5 {[%clk 0:02:59]} 2. c4 {[%clk 0:03:01]}  e6 {[%clk 0:02:58]} 3. Nc3 {[%clk 0:03:00]}  Nf6 {[%clk 0:02:58]} 4. Bg5 {[%clk 0:03:01]}  Be7 {[%clk 0:02:57]} 5. e3 {[%clk 0:03:02]}  h6 {[%clk 0:02:56]} 6. Bh4 {[%clk 0:03:01]}  O-O {[%clk 0:02:56]} 7. Nf3 {[%clk 0:03:02]}  Ne4 {[%clk 0:02:56]} 8. Bxe7 {[%clk 0:03:01]}  Qxe7 {[%clk 0:02:56]} 9. cxd5 {[%clk 0:03:01]}  Nxc3 {[%clk 0:02:56]} 10. bxc3 {[%clk 0:03:01]}  exd5 {[%clk 0:02:56]} 11. Qb3 {[%clk 0:03:00]}  Rd8 {[%clk 0:02:56]} 12. c4 {[%clk 0:02:53]}  dxc4 {[%clk 0:02:50]} 13. Bxc4 {[%clk 0:02:52]}  Nc6 {[%clk 0:02:50]} 14. Bd3 {[%clk 0:02:37]}  Nxd4 {[%clk 0:02:43]} 15. Nxd4 {[%clk 0:02:28]}  Rxd4 {[%clk 0:02:42]} 16. O-O {[%clk 0:02:27]}  Rd6 {[%clk 0:02:34]} 17. Rad1 {[%clk 0:02:20]}  b6 {[%clk 0:02:31]} 18. a4 {[%clk 0:02:11]}  Bb7 {[%clk 0:02:22]} 19. Be2 {[%clk 0:01:56]}  Qg5 {[%clk 0:02:16]} 20. f3 {[%clk 0:01:46]}  Rad8 {[%clk 0:02:13]} 21. e4 {[%clk 0:01:41]}  Rxd1 {[%clk 0:02:08]} 22. Rxd1 {[%clk 0:01:39]}  Rxd1+ {[%clk 0:02:07]} 23. Bxd1 {[%clk 0:01:35]}  Qc5+ {[%clk 0:02:08]} 24. Kh1 {[%clk 0:01:30]}  Qf2 {[%clk 0:02:01]} 25. h3 {[%clk 0:01:28]}  Ba6 {[%clk 0:02:00]} 26. Qc2 {[%clk 0:01:11]}  Bf1 {[%clk 0:01:48]} 27. Qxf2 {[%clk 0:01:10]} 1-0


[Site "https://www.chess.com"]

[Event "Titled Tuesday Blitz August 1 Late 2023"]
[White "disciplinedbrat"]
[Black "Perez, Maximiliano"]
[BlackFideId "117234"]
[WhiteElo "2289"]
[BlackElo "2539"]
[Result "0-1"]
[Round "5"]
[TimeControl "180+1"]
[Date "2023.08.01"]
[WhiteClock "0:00:10"]
[BlackClock "0:00:14"]
[Board "159"]

1. g3 {[%clk 0:03:00]}  g6 {[%clk 0:02:59]} 2. Bg2 {[%clk 0:03:01]}  Bg7 {[%clk 0:03:00]} 3. d4 {[%clk 0:03:02]}  d6 {[%clk 0:03:00]} 4. e4 {[%clk 0:03:02]}  Nf6 {[%clk 0:02:59]} 5. Ne2 {[%clk 0:03:03]}  O-O {[%clk 0:02:59]} 6. Nbc3 {[%clk 0:03:03]}  e5 {[%clk 0:02:56]} 7. O-O {[%clk 0:03:03]}  exd4 {[%clk 0:02:53]} 8. Nxd4 {[%clk 0:03:04]}  Nbd7 {[%clk 0:02:54]} 9. Re1 {[%clk 0:03:01]}  Re8 {[%clk 0:02:53]} 10. Be3 {[%clk 0:03:01]}  Nc5 {[%clk 0:02:53]} 11. Bg5 {[%clk 0:02:42]}  h6 {[%clk 0:02:51]} 12. Bxf6 {[%clk 0:02:41]}  Bxf6 {[%clk 0:02:52]} 13. Nd5 {[%clk 0:02:41]}  Bg7 {[%clk 0:02:47]} 14. c3 {[%clk 0:02:41]}  c6 {[%clk 0:02:42]} 15. Nb4 {[%clk 0:02:41]}  Qb6 {[%clk 0:02:35]} 16. Rb1 {[%clk 0:02:37]}  a5 {[%clk 0:02:31]} 17. Nbc2 {[%clk 0:02:36]}  Nd7 {[%clk 0:02:32]} 18. Na3 {[%clk 0:02:34]}  Ne5 {[%clk 0:02:28]} 19. f4 {[%clk 0:02:30]}  Ng4 {[%clk 0:02:09]} 20. f5 {[%clk 0:02:25]}  Ne5 {[%clk 0:02:05]} 21. fxg6 {[%clk 0:02:23]}  fxg6 {[%clk 0:02:06]} 22. Kh1 {[%clk 0:02:15]}  Ng4 {[%clk 0:02:02]} 23. Qd2 {[%clk 0:02:04]}  Rf8 {[%clk 0:01:44]} 24. Rf1 {[%clk 0:02:02]}  Bd7 {[%clk 0:01:44]} 25. h3 {[%clk 0:01:54]}  Ne5 {[%clk 0:01:43]} 26. Rxf8+ {[%clk 0:01:32]}  Rxf8 {[%clk 0:01:44]} 27. Rf1 {[%clk 0:01:32]}  Rxf1+ {[%clk 0:01:43]} 28. Bxf1 {[%clk 0:01:32]}  Qd8 {[%clk 0:01:33]} 29. Bg2 {[%clk 0:01:29]}  Qf6 {[%clk 0:01:32]} 30. Kg1 {[%clk 0:01:27]}  Kh7 {[%clk 0:01:30]} 31. Nac2 {[%clk 0:01:21]}  h5 {[%clk 0:01:29]} 32. Ne3 {[%clk 0:01:17]}  Bh6 {[%clk 0:01:28]} 33. Qe2 {[%clk 0:01:02]}  Qg5 {[%clk 0:01:22]} 34. Nf1 {[%clk 0:00:59]}  Qc1 {[%clk 0:01:21]} 35. Nf3 {[%clk 0:00:54]}  Nxf3+ {[%clk 0:00:58]} 36. Qxf3 {[%clk 0:00:53]}  Kg7 {[%clk 0:00:56]} 37. Qd3 {[%clk 0:00:51]}  Be6 {[%clk 0:00:42]} 38. Qxd6 {[%clk 0:00:42]}  Bxa2 {[%clk 0:00:42]} 39. e5 {[%clk 0:00:42]}  Qe1 {[%clk 0:00:37]} 40. Qf6+ {[%clk 0:00:37]}  Kh7 {[%clk 0:00:37]} 41. Qe7+ {[%clk 0:00:24]}  Bg7 {[%clk 0:00:37]} 42. Qxb7 {[%clk 0:00:25]}  Qxe5 {[%clk 0:00:33]} 43. Qxc6 {[%clk 0:00:24]}  Qe2 {[%clk 0:00:27]} 44. Be4 {[%clk 0:00:20]}  Bf7 {[%clk 0:00:26]} 45. Qb7 {[%clk 0:00:16]}  Kg8 {[%clk 0:00:22]} 46. Qc8+ {[%clk 0:00:14]}  Bf8 {[%clk 0:00:21]} 47. Qc6 {[%clk 0:00:14]}  Kg7 {[%clk 0:00:20]} 48. Bf3 {[%clk 0:00:12]}  Qxb2 {[%clk 0:00:19]} 49. g4 {[%clk 0:00:10]}  hxg4 {[%clk 0:00:18]} 50. hxg4 {[%clk 0:00:10]}  Qa3 {[%clk 0:00:16]} 51. Qb6 {[%clk 0:00:09]}  Bc5+ {[%clk 0:00:15]} 52. Qxc5 {[%clk 0:00:07]}  Qxc5+ {[%clk 0:00:15]} 53. Kg2 {[%clk 0:00:07]}  Qxc3 {[%clk 0:00:16]} 54. Ng3 {[%clk 0:00:07]}  Qb3 {[%clk 0:00:16]} 55. Ne4 {[%clk 0:00:07]}  Bd5 {[%clk 0:00:16]} 56. Ng5 {[%clk 0:00:06]}  Bxf3+ {[%clk 0:00:16]} 57. Nxf3 {[%clk 0:00:07]}  a4 {[%clk 0:00:16]} 58. Kg3 {[%clk 0:00:08]}  a3 {[%clk 0:00:16]} 59. Kh4 {[%clk 0:00:08]}  a2 {[%clk 0:00:16]} 60. Ng5 {[%clk 0:00:08]}  a1=Q {[%clk 0:00:14]} 61. Ne6+ {[%clk 0:00:09]}  Qxe6 {[%clk 0:00:14]} 62. Kg5 {[%clk 0:00:09]}  Qc1+ {[%clk 0:00:14]} 63. Kh4 {[%clk 0:00:10]}  Qf6+ {[%clk 0:00:14]} 64. Kg3 {[%clk 0:00:10]}  Qff4+ {[%clk 0:00:14]} 65. Kh4 {[%clk 0:00:10]}  Qh1# {[%clk 0:00:14]} 0-1


[Site "https://www.chess.com"]